Cogmind - Beta 14 @@@ ROGUE MODE // 2025.03.02 @ 16:30:59 Player: mm79 Result: Self-destructed Performance ------------- Evolutions (6) 3000 Regions Visited (17) 3400 Robots Destroyed (125) 625 Value Destroyed (4832) 4832 Prototype IDs (50) 1000 Alien Tech Used (0) 0 Bonus (2646) 2646 TOTAL SCORE: 15503 Bonus ------- Follower Combat Kills 1504 Network Hubs Disabled 200 Aligned with FarCom 300 Built Enhanced Grunts 300 A7 Reached Mainframe 300 Met R17 at Cetus 500 Friendly Fire -458 Cogmind --------- Core Integrity 984/1150 Matter 101/300 Energy 2/1050 System Corruption 2% Temperature Cool (9) Movement Core (1400) Ox27 Location -4/Factory Parts ------- > --- POWER (2) -------- Antimatter Reactor Reinforced Antimatter Reactor > --- PROPULSION (4) --- (None) > --- UTILITY (9) ------ Advanced Heat Sink Large Storage Unit Advanced Energy Well 0b10 Alert Chip Core Analyzer Advanced Shield Generator Improved Hacking Suite Advanced System Shield > --- WEAPON (4) ------- Advanced KE Penetrator Long-range Missile Launcher > --- INVENTORY (15) --- Quantum Reactor Advanced Medium Treads Matter Compressor (250) Improved Kinecellerator Advanced Transmission Jammer Advanced Transmission Jammer Centrium Medium Armor Plating Centrium Medium Armor Plating Force Field Force Field System Restoration Module Hypervelocity Gauss Rifle Hypervelocity Gauss Rifle Advanced KE Penetrator Peak State ------------ > --- POWER ------------ Antimatter Reactor Reinforced Antimatter Reactor > --- PROPULSION ------- Heavy Treads Heavy Treads > --- UTILITY ---------- Advanced Heat Sink Large Storage Unit Advanced Energy Well 0b10 Alert Chip Core Analyzer Centrium Medium Armor Plating Advanced Shield Generator Improved Hacking Suite Advanced System Shield > --- WEAPON ----------- Hypervelocity Gauss Rifle Hypervelocity Gauss Rifle Advanced KE Penetrator Advanced KE Penetrator > --- INVENTORY -------- Quantum Reactor Advanced Medium Treads Matter Compressor Improved Kinecellerator Advanced Transmission Jammer Advanced Transmission Jammer Centrium Medium Armor Plating Centrium Medium Armor Plating Force Field Force Field System Restoration Module Hypervelocity Gauss Rifle Advanced KE Penetrator Long-range Missile Launcher [Rating: 123] Favorites ----------- Power Antimatter Reactor Engine Improved Ion Engine Power Core Light Nuclear Core Reactor Antimatter Reactor Propulsion Heavy Treads Treads Heavy Treads Wheel Compact Wheel Utility Large Storage Unit Device Improved Shield Generator Storage Large Storage Unit Processor 0b10 Alert Chip Hackware System Shield Protection Improved Medium Armor Plating Weapon Hypervelocity Gauss Rifle Energy Gun Heavy Particle Gun Ballistic Gun Hypervelocity Gauss Rifle Ballistic Cannon Light Cannon Launcher Long-range Missile Launcher Special Weapon Improved Plasma Cutter Impact Weapon Flail Slashing Weapon Katana Special Melee Weapon Datajack Build | -11 -10 -10 -10 -9 -8 -7 -7 -7 -6 -6 -6 -6 -6 -6 -6 -5 -4 ------- Run | Yrd Mat Min Exi Min Mat Fac Was Fac Fac Was Fac Ext Cet Arc Hub Fac Fac Slots Evolved 12 | . . . . . 4 2 . . 2 . . . . . . 2 2 Power 1 | . . . . . . . . . . . . . . . . . 1 Propulsion 2 | . . . . . 1 . . . . . . . . . . 1 . Utility 7 | . . . . . 2 2 . . 2 . . . . . . . 1 Weapon 2 | . . . . . 1 . . . . . . . . . . 1 . Parts Attached 140 | 6 10 5 2 . 27 9 5 2 5 13 8 8 9 2 13 9 7 Power 14 | . . 2 . . 2 . 3 . . 1 2 . 3 . . . 1 Engine 3 | . . 1 . . 2 . . . . . . . . . . . . Core 2 | . . 1 . . . . . . . . . . 1 . . . . Reactor 9 | . . . . . . . 3 . . 1 2 . 2 . . . 1 Propulsion 24 | 2 3 1 . . 5 2 1 . . 1 1 . 1 . 3 1 3 Treads 20 | 1 1 . . . 5 2 1 . . 1 1 . 1 . 3 1 3 Leg . | . . . . . . . . . . . . . . . . . . Wheel 4 | 1 2 1 . . . . . . . . . . . . . . . Hover . | . . . . . . . . . . . . . . . . . . Flight . | . . . . . . . . . . . . . . . . . . Utility 49 | 2 5 . . . 7 4 . 2 5 5 3 2 2 2 4 4 2 Device 26 | 1 3 . . . 4 1 . 2 3 4 1 1 . 1 3 1 1 Storage 5 | 1 1 . . . . . . . . . . 1 . . 1 . 1 Processor 3 | . 1 . . . 1 . . . 1 . . . . . . . . Hackware 6 | . . . . . . 2 . . . . 1 . . 1 . 2 . Protection 9 | . . . . . 2 1 . . 1 1 1 . 2 . . 1 . Artifact . | . . . . . . . . . . . . . . . . . . Weapon 53 | 2 2 2 2 . 13 3 1 . . 6 2 6 3 . 6 4 1 Energy Gun 2 | . . . . . 2 . . . . . . . . . . . . Energy Cannon . | . . . . . . . . . . . . . . . . . . Ballistic Gun 35 | 2 1 1 . . 6 3 1 . . 4 1 4 3 . 5 4 . Ballistic Cannon 2 | . . 1 1 . . . . . . . . . . . . . . Launcher 9 | . 1 . . . 2 . . . . 2 1 2 . . . . 1 Special Weapon 1 | . . . . . . . . . . . . . . . 1 . . Impact Weapon 1 | . . . . . 1 . . . . . . . . . . . . Slashing Weapon 2 | . . . . . 2 . . . . . . . . . . . . Piercing Weapon . | . . . . . . . . . . . . . . . . . . Special Melee Weapon 1 | . . . 1 . . . . . . . . . . . . . . Unidentified Prototypes 5 | . . . . . 1 1 . . . . . . 2 . 1 . . Corrupted Parts 3 | . . . . . . . . . . . . . . . 3 . . System Corruption 11 | . . . . . . . . . . . . . . . 11 . . Parts Lost 31 | . 3 4 . . 6 2 . . . 2 2 4 1 . . 1 6 Power 1 | . . 1 . . . . . . . . . . . . . . . Propulsion 6 | . 2 1 . . 1 . . . . . . . . . . . 2 Utility 13 | . 1 . . . 2 2 . . . 1 2 2 . . . 1 2 Weapon 11 | . . 2 . . 3 . . . . 1 . 2 1 . . . 2 Highest Loss Streak 6 | . 1 3 . . 3 1 . . . 2 1 3 1 . . 1 6 To Critical Strikes . | . . . . . . . . . . . . . . . . . . Average Slot Usage (%) 93 | . 84 98 100 100 96 100 93 92 93 91 93 92 93 93 92 87 89 Engine 2 | . . 12 . . 7 7 1 . . . . . . . . . . Reactor 3 | . . . . . . . 5 7 6 6 6 6 6 6 6 5 10 Treads 15 | . 14 14 14 14 24 23 17 15 13 13 13 13 13 13 13 11 10 Wheel 2 | . 14 13 14 14 2 . . . . . . . . . . . . Device 11 | . 10 . . . 9 8 15 15 19 21 13 13 13 13 12 10 10 Storage 8 | . 14 14 14 14 9 7 7 7 6 6 6 8 7 6 6 5 10 Processor 10 | . 2 14 14 14 10 7 7 7 13 13 13 13 13 13 13 11 10 Hackware 7 | . . . . . . 13 7 7 6 6 12 13 13 13 13 10 10 Protection 4 | . . . . . 6 7 7 7 6 3 6 3 4 6 5 5 5 Ballistic Gun 20 | . 27 14 14 14 18 19 22 23 20 17 19 19 20 20 19 23 21 Ballistic Cannon 1 | . . 13 1 14 1 . . . . . . . . . . . . Peak Build Rating 123 | 6 7 10 11 11 32 46 66 66 75 77 75 76 86 88 94 107 123 Average Rating 60 | 4 6 8 10 11 26 39 58 65 73 73 74 74 83 86 87 105 120 On Entrance 51 | . 6 7 10 11 11 29 46 66 66 74 74 74 76 86 88 93 106 Naked Turns . | . . . . . . . . . . . . . . . . . . Heaviest Build 99 | 9 24 29 29 29 47 53 63 63 70 68 64 65 67 67 66 72 99 Greatest Support 140 | 10 10 16 16 16 60 68 98 98 98 98 98 92 92 92 92 140 140 Greatest Overweight (x) 2 | . 2 1 1 1 2 . . . . . . . . . . . . Average Overweight (x) . | . 1 1 1 1 . . . . . . . . . . . . . Largest Inventory Capacity 15 | 8 15 15 15 15 15 15 15 15 15 15 15 15 15 15 15 15 15 Average Capacity 14 | 7 13 15 15 15 15 15 15 15 15 15 15 15 15 15 15 15 15 Most Carried 15 | 7 9 8 11 10 15 15 15 15 15 15 15 15 15 15 15 15 15 Average Carried 13 | 3 8 6 10 10 13 14 14 14 13 14 14 13 14 14 15 14 14 Final Capacity 15 | 8 15 15 15 15 15 15 15 15 15 15 15 15 15 15 15 15 15 Final Carried 15 | 7 9 7 10 10 15 13 15 15 14 15 15 15 15 15 15 15 14 Class Distribution -------------------- 29% | Scavenger-Tank 20% | Tank 15% | Mutant 14% | Hacker-Tank 13% | Scavenger-Mutant Dominant Class ---------------- Mutant | -10/Materials Mutant | -10/Mines Mutant | -10/Exiles Mutant | -9/Mines Scavenger-Mutant | -8/Materials Scavenger-Mutant | -7/Factory Tank | -7/Waste Tank | -7/Factory Tank | -6/Factory Skirmisher | -6/Waste Hacker-Tank | -6/Factory Scavenger-Tank | -6/Extension Scavenger-Tank | -6/Cetus Scavenger-Tank | -6/Archives Scavenger-Tank | -6/Hub_04(d) Scavenger-Tank | -5/Factory Scavenger-Tank | -4/Factory Resources | -11 -10 -10 -10 -9 -8 -7 -7 -7 -6 -6 -6 -6 -6 -6 -6 -5 -4 ----------- Run | Yrd Mat Min Exi Min Mat Fac Was Fac Fac Was Fac Ext Cet Arc Hub Fac Fac Matter Collected 4685 | 304 311 243 . 20 425 676 32 200 127 319 341 574 174 76 119 744 . Remotely . | . . . . . . . . . . . . . . . . . . Salvage Created 7261 | 135 412 209 . . 565 799 67 30 236 1527 604 512 123 80 113 1682 167 Parts 350 | 13 28 13 . . 39 38 3 2 12 25 32 28 5 9 3 94 6 Haulers Intercepted 6 | . . . . . 1 1 . . 1 . 1 . . . 1 1 . Recyclers Shooed 11 | 1 4 . . . . . . . . . 3 . . . . 3 . Parts Field Recycled . | . . . . . . . . . . . . . . . . . . Retrieved Matter . | . . . . . . . . . . . . . . . . . . Parts Self-Destructed . | . . . . . . . . . . . . . . . . . . Prevented . | . . . . . . . . . . . . . . . . . . Kills | -11 -10 -10 -10 -9 -8 -7 -7 -7 -6 -6 -6 -6 -6 -6 -6 -5 -4 ------- Run | Yrd Mat Min Exi Min Mat Fac Was Fac Fac Was Fac Ext Cet Arc Hub Fac Fac Combat Hostiles Destroyed 90 | . 11 5 . . 14 12 . 1 2 5 6 14 2 . . 16 2 Melee 2 | . . . . . 2 . . . . . . . . . . . . Guns 72 | . 9 4 . . 8 12 . 1 2 5 6 7 2 . . 16 . Cannons 1 | . . 1 . . . . . . . . . . . . . . . AOE 15 | . 2 . . . 4 . . . . . . 7 . . . . 2 Classes Destroyed 18 | 2 2 . . . 4 3 . . 1 1 2 1 . . . . 2 Worker 4 | . . . . . 1 1 . . . . 1 . . . . 1 . Builder 5 | . . . . . . . . . . . 1 . . . . 2 2 Tunneler 5 | 4 1 . . . . . . . . . . . . . . . . Hauler 6 | . . . . . 1 1 . . 1 . 1 . . . 1 1 . Recycler 8 | 1 1 . . . . 1 . . . . 1 . . . . 3 1 Operator 3 | . . . . . . . . . 1 . . . . 2 . . . Watcher 2 | . . . . . . 1 . . . . . . . . . 1 . Swarmer 12 | . 3 . . . 4 . . 1 . . . 4 . . . . . Saboteur 1 | . . . . . . . . . . . . . . . . . 1 Grunt 36 | . 8 5 . . 4 6 . . 2 . 1 5 . . . 5 . Brawler 1 | . . . . . . 1 . . . . . . . . . . . Duelist 1 | . . . . . 1 . . . . . . . . . . . . Protector 1 | . . . . . . . . . . . . . . . . . 1 Sentry 11 | . . . . . 5 . . . . . 2 2 . . . 2 . Hunter 3 | . . . . . . . . . . . . 2 . . . 1 . Programmer 14 | . . . . . . 5 . . . . 2 . . . . 7 . Behemoth 3 | . . . . . . . . . . . 1 1 . . . 1 . Compactor 5 | . . . . . . . . . . 5 . . . . . . . Cetus Guard 2 | . . . . . . . . . . . . . 2 . . . . Thug 1 | . . . . . . . 1 . . . . . . . . . . Butcher 1 | . . . . . . . . . 1 . . . . . . . . Best Kill Streak 7 | 5 4 4 . . 5 3 . 1 3 2 6 6 2 1 1 7 5 Combat Bots Only 6 | . 3 4 . . 5 3 . 1 1 2 2 6 2 . . 3 2 Max Kills in Single Turn 4 | 1 2 1 . . 4 2 1 1 1 1 3 4 1 1 1 3 2 Gunslinging . | . . . . . . . . . . . . . . . . . . Exploded 4 | . 2 . . . 4 . . . . . . 4 . . . . 2 Melee 1 | . . . . . 1 . . . . . . . . . . . . Uniques/NPCs Destroyed . | . . . . . . . . . . . . . . . . . . Combat | -11 -10 -10 -10 -9 -8 -7 -7 -7 -6 -6 -6 -6 -6 -6 -6 -5 -4 -------- Run | Yrd Mat Min Exi Min Mat Fac Was Fac Fac Was Fac Ext Cet Arc Hub Fac Fac Hostile Shots Fired 797 | . 63 29 . . 101 81 . 1 5 2 98 85 3 . 8 52 269 Missed 222 | . 21 4 . . 20 19 . . 2 . 28 18 1 . 1 13 95 Damage Taken 7259 | . 517 359 . . 1058 718 . 59 40 80 814 874 55 . 77 634 1974 Core 615 | . 63 74 . . 91 54 . . . 36 70 61 . . . . 166 Absorbed by Shields 2043 | . . . . . 300 266 . 22 15 15 293 314 20 . 28 226 544 Reduced by Siege Mode 380 | . . . . . . . . . 4 11 39 20 . . 6 66 234 Ignored by Resistances 61 | . . . . . . . . . . . 4 57 . . . . . Regen/Repaired (Parts) 635 | . . . . . 167 . 143 17 68 87 116 . . . . 37 . Core Remaining (%) 83 | 100 . . . 45 83 . . 92 . . . . . . 80 100 . Volleys Fired 315 | 11 51 19 . . 44 54 . 3 7 16 24 24 7 4 6 38 7 Largest 4 | 2 2 2 . . 3 3 . 3 3 3 3 3 3 3 3 4 4 Hottest 136 | 40 40 55 . . 78 84 . 94 94 109 99 99 98 101 101 136 136 Shots Fired 816 | 22 98 38 . . 92 154 2 10 21 42 65 68 21 12 15 134 22 Gun 787 | 22 96 29 . . 82 154 2 10 21 39 64 66 21 12 15 134 20 Cannon 18 | . . 9 . . 9 . . . . . . . . . . . . Launcher 11 | . 2 . . . 1 . . . . 3 1 2 . . . . 2 Special . | . . . . . . . . . . . . . . . . . . Kinetic 805 | 22 96 38 . . 91 154 2 10 21 39 64 66 21 12 15 134 20 Thermal . | . . . . . . . . . . . . . . . . . . Explosive 11 | . 2 . . . 1 . . . . 3 1 2 . . . . 2 Electromagnetic . | . . . . . . . . . . . . . . . . . . Robot Hit Streak 38 | 8 18 12 . . 20 38 . 4 11 15 33 16 28 5 20 23 10 Robot Miss Streak 4 | 2 3 2 . . 2 2 2 4 1 1 2 2 1 1 . 2 2 Penetration Max 2 | . . . . . . 1 . 2 1 1 . . 1 1 1 2 . Secondary Targets 10 | . . 3 . . 1 1 . . . . . 2 1 . . 2 . Max Gunslinging Chain 1 | . . 1 . . 1 1 . . . . . 1 1 . . 1 . Shots Hit Robots 617 | 13 71 29 4 . 85 119 . 7 17 30 47 55 19 10 15 77 19 Core Hits 289 | 7 27 16 . . 32 40 1 3 10 16 23 33 4 4 8 49 16 Critical Kills 36 | . . . . . 1 5 1 1 4 3 . 1 2 2 . 16 . Critical Parts Destroyed 37 | . . . . . . 5 . 1 1 1 2 1 . 2 4 18 2 Critical Strikes 82 | . . 2 . . 4 11 1 2 5 5 2 2 2 5 4 35 2 Destroy 77 | . . . . . 1 11 1 2 5 5 2 2 2 5 4 35 2 Blast 4 | . . 2 . . 2 . . . . . . . . . . . . Sever 1 | . . . . . 1 . . . . . . . . . . . . Melee Attacks 21 | . . . 4 . 17 . . . . . . . . . . . . Impact . | . . . . . . . . . . . . . . . . . . Slashing 17 | . . . . . 17 . . . . . . . . . . . . Piercing . | . . . . . . . . . . . . . . . . . . Sneak Attacks 5 | . . . 4 . 1 . . . . . . . . . . . . Combat Hostiles . | . . . . . . . . . . . . . . . . . . Follow-up Attacks . | . . . . . . . . . . . . . . . . . . Damage Inflicted 13444 | 147 1005 329 . . 1356 1831 33 141 353 825 1247 1905 402 124 256 1670 1820 Guns 9211 | 147 758 225 . . 710 1831 33 141 353 516 841 1000 402 124 256 1593 281 Cannons 226 | . . 104 . . 122 . . . . . . . . . . . . Explosions 3580 | . 247 . . . 193 . . . . 309 387 905 . . . . 1539 Melee 331 | . . . . . 331 . . . . . . . . . . . . Ramming 96 | . . . . . . . . . . . 19 . . . . 77 . Kinetic 9437 | 147 758 329 . . 832 1831 33 141 353 516 841 1000 402 124 256 1593 281 Thermal 1062 | . . . . . . . . . . . . 404 . . . . 658 Explosive 2518 | . 247 . . . 193 . . . . 309 387 501 . . . . 881 Electromagnetic . | . . . . . . . . . . . . . . . . . . Impact . | . . . . . . . . . . . . . . . . . . Slashing 331 | . . . . . 331 . . . . . . . . . . . . Piercing . | . . . . . . . . . . . . . . . . . . Highest Corruption 11 | . . . . . . 10 10 10 . . . . . . 11 5 2 Average Corruption 7 | . . . . . . 6 10 10 . . . . . . 8 3 1 Corruption Purged . | . . . . . . . . . . . . . . . . . . Corruption Blocked . | . . . . . . . . . . . . . . . . . . Effects 114 | . . . . . . 31 11 53 . . . . . . 1 18 . Message Errors 25 | . . . . . . 9 3 10 . . . . . . 1 2 . Matter Fused 26 | . . . . . . 7 2 13 . . . . . . . 4 . Heat Flow Errors 14 | . . . . . . 6 2 3 . . . . . . . 3 . Energy Discharges 10 | . . . . . . . 1 7 . . . . . . . 2 . Data Loss (minor) 21 | . . . . . . 4 1 13 . . . . . . . 3 . Data Loss (major) 7 | . . . . . . 1 . 4 . . . . . . . 2 . Misfires 7 | . . . . . . 2 2 1 . . . . . . . 2 . Alerts 2 | . . . . . . . . 2 . . . . . . . . . Weapon Failures 2 | . . . . . . 2 . . . . . . . . . . . Overload Shots . | . . . . . . . . . . . . . . . . . . Overflow Damage 125 | . 20 . . . 23 . . . . . 55 . . . . . 27 Projectiles . | . . . . . . . . . . . . . . . . . . Explosions 102 | . 20 . . . . . . . . . 55 . . . . . 27 Melee 23 | . . . . . 23 . . . . . . . . . . . . Knockbacks 4 | . . 1 . . 2 . . . . . 1 . . . . . . Impact 1 | . . . . . . . . . . . 1 . . . . . . Kinetic 3 | . . 1 . . 2 . . . . . . . . . . . . Secondary . | . . . . . . . . . . . . . . . . . . Self-Inflicted Damage 339 | . . . . . 55 . . . . . 209 . . . . . 75 Shots 5 | . . . . . 1 . . . . . 2 . . . . . 2 Rammed 11 | . . . . . . . . . . . 2 . . . . 9 . Targets Rammed 11 | . . . . . . . . . . . 2 . . . . 9 . Kicked . | . . . . . . . . . . . . . . . . . . Crushed . | . . . . . . . . . . . . . . . . . . Highest Temperature 285 | . 22 19 . . 15 285 238 233 . . . 24 . . . 220 66 Average Temperature 53 | . 4 7 . . 4 67 106 106 . . . 10 . . . 67 30 Received Heat Transfer 1489 | . 246 228 . . 383 157 . 6 18 . 139 123 . . . 103 86 Effects 1 | . . . . . . 1 . . . . . . . . . . . Interference 1 | . . . . . . 1 . . . . . . . . . . . Siege Activations 23 | . . . . . . . . 1 1 4 3 3 2 . 1 7 1 Total Turns 369 | . . . . . . . . 6 10 33 39 35 39 . 20 155 32 Longest Duration 44 | . . . . . . . . 6 10 17 22 21 20 . 20 44 32 Robots Corrupted . | . . . . . . . . . . . . . . . . . . Combat Hostiles . | . . . . . . . . . . . . . . . . . . Parts Fried . | . . . . . . . . . . . . . . . . . . Impact Corruptions . | . . . . . . . . . . . . . . . . . . Robots Melted . | . . . . . . . . . . . . . . . . . . Combat Hostiles . | . . . . . . . . . . . . . . . . . . Parts Melted 1 | . . . . . . . . . . . . . . . . . 1 Heat Transferred 400 | . . . . . . . . . . . . 100 . . . . 300 Parts Sabotaged . | . . . . . . . . . . . . . . . . . . Parts Stolen . | . . . . . . . . . . . . . . . . . . Parts Stripped . | . . . . . . . . . . . . . . . . . . Power Chain Reactions . | . . . . . . . . . . . . . . . . . . Alert | -11 -10 -10 -10 -9 -8 -7 -7 -7 -6 -6 -6 -6 -6 -6 -6 -5 -4 ------- Run | Yrd Mat Min Exi Min Mat Fac Was Fac Fac Was Fac Ext Cet Arc Hub Fac Fac Peak Influence 436 | 25 202 82 . . 238 110 28 436 359 57 201 349 331 169 286 213 114 Initial 213 | . 16 12 . . . . 28 . 213 57 6 68 111 52 58 101 100 Average 86 | 6 99 51 . . 79 28 27 101 240 21 34 153 209 142 146 129 61 Maximum Alert Level 2 | . 1 . . . 1 . . 2 1 . 1 1 1 . 1 1 . Low Security (%) 86 | 100 97 100 . 100 88 100 100 77 7 100 94 72 48 100 58 88 100 Level 1 12 | . 2 . . . 11 . . 15 92 . 5 27 51 . 41 11 . Level 2 . | . . . . . . . . 6 . . . . . . . . . Level 3 . | . . . . . . . . . . . . . . . . . . Level 4 . | . . . . . . . . . . . . . . . . . . Level 5 . | . . . . . . . . . . . . . . . . . . High Security . | . . . . . . . . . . . . . . . . . . Max Security . | . . . . . . . . . . . . . . . . . . Squads Dispatched 30 | . 2 . . . 1 6 . 3 2 . 4 2 . . 1 6 3 Investigation 8 | . 1 . . . 1 1 . . 1 . 1 . . . . 3 . Extermination 12 | . . . . . . 4 . 2 . . 2 . . . . 3 1 Reinforcement 9 | . 1 . . . . 1 . 1 1 . 1 2 . . 1 . 1 Assault . | . . . . . . . . . . . . . . . . . . Garrison 1 | . . . . . . . . . . . . . . . . . 1 Intercept . | . . . . . . . . . . . . . . . . . . Searches Triggered . | . . . . . . . . . . . . . . . . . . Construction Impeded 2 | . . . . . . . . . . . . 1 . . . . 1 Haulers Reinforced . | . . . . . . . . . . . . . . . . . . Active Scanning Responses . | . . . . . . . . . . . . . . . . . . Cargo Convoy Interrupts 1 | . . . . . . . . . . . . . . . . . 1 Stealth | -11 -10 -10 -10 -9 -8 -7 -7 -7 -6 -6 -6 -6 -6 -6 -6 -5 -4 --------- Run | Yrd Mat Min Exi Min Mat Fac Was Fac Fac Was Fac Ext Cet Arc Hub Fac Fac Distress Signals 14 | . 4 . . . . 1 . . . . 1 1 2 1 1 3 . Communications Jammed 2 | . . . . . . . . . 2 . . . . . . . . Distress Signals 2 | . . . . . . . . . 2 . . . . . . . . Times Spotted 178 | . 23 7 . . 20 19 . 10 4 7 12 21 8 4 6 19 18 Peak Tracking Total 15 | . 5 3 . . 6 5 . 5 2 2 3 6 5 1 2 4 15 Tactical Retreats 14 | . 1 1 . . 2 1 . . . 2 . 1 . . 1 5 . Traps | -11 -10 -10 -10 -9 -8 -7 -7 -7 -6 -6 -6 -6 -6 -6 -6 -5 -4 ------- Run | Yrd Mat Min Exi Min Mat Fac Was Fac Fac Was Fac Ext Cet Arc Hub Fac Fac Traps Triggered 5 | . 1 . . . 1 1 . 1 1 . . . . . . . . Indirectly . | . . . . . . . . . . . . . . . . . . Trap Hack Attempts . | . . . . . . . . . . . . . . . . . . Triggered . | . . . . . . . . . . . . . . . . . . Disarmed . | . . . . . . . . . . . . . . . . . . Reprogrammed . | . . . . . . . . . . . . . . . . . . Reused . | . . . . . . . . . . . . . . . . . . Traps Extracted . | . . . . . . . . . . . . . . . . . . Installed . | . . . . . . . . . . . . . . . . . . Triggered . | . . . . . . . . . . . . . . . . . . Machines | -11 -10 -10 -10 -9 -8 -7 -7 -7 -6 -6 -6 -6 -6 -6 -6 -5 -4 ---------- Run | Yrd Mat Min Exi Min Mat Fac Was Fac Fac Was Fac Ext Cet Arc Hub Fac Fac Machines Disabled 18 | . 1 . . . . . . . . . 5 3 . 1 2 3 3 Max in Single Turn 3 | . 1 . . . . . . . . . 2 2 . 1 1 1 3 Garrison Access 5 | . . . . . . 1 . 1 . . 1 . . . . 1 1 Network Hub 1 | . . . . . . . . . . . . . . . 1 . . Energy Cycler 2 | . . . . . . . . . . . . 2 . . . . . Machines Repaired . | . . . . . . . . . . . . . . . . . . Machines Dismantled 1 | . . . . . . . . . . . . . . . 1 . . Machines Sabotaged . | . . . . . . . . . . . . . . . . . . Overloaded Fab Kills . | . . . . . . . . . . . . . . . . . . Hacking | -11 -10 -10 -10 -9 -8 -7 -7 -7 -6 -6 -6 -6 -6 -6 -6 -5 -4 --------- Run | Yrd Mat Min Exi Min Mat Fac Was Fac Fac Was Fac Ext Cet Arc Hub Fac Fac Machines Accessed 67 | . 9 . 1 . 11 9 . 5 2 . 7 5 1 . 2 8 7 Terminals 38 | . 7 . . . 8 4 . 1 1 . 4 5 1 . 2 3 2 Fabricators 6 | . . . . . . 2 . 1 . . 1 . . . . 2 . Repair Stations 4 | . . . . . 1 . . . 1 . 1 . . . . 1 . Recycling Units 11 | . 2 . . . 1 2 . 2 . . . . . . . 1 3 Scanalyzers 1 | . . . . . . . . . . . . . . . . . 1 Garrison Access 6 | . . . . . 1 1 . 1 . . 1 . . . . 1 1 Total Hacks 263 | . 28 . 1 . 36 25 . 11 14 . 26 16 3 . 11 39 53 Successful 143 | . 19 . 1 . 20 15 . 6 8 . 15 8 1 . 2 20 28 Failed 120 | . 9 . . . 16 10 . 5 6 . 11 8 2 . 9 19 25 Catastrophic 18 | . 1 . . . 1 1 . 2 . . 3 2 1 . 3 3 1 Database Lockouts . | . . . . . . . . . . . . . . . . . . Manual 157 | . 20 . 1 . 27 11 . 8 6 . 11 12 3 . 11 16 31 Terminals 175 | . 24 . . . 27 15 . 5 8 . 17 16 3 . 11 24 25 Fabricators 10 | . . . . . . 2 . 1 . . 1 . . . . 6 . Repair Stations 20 | . . . . . 6 . . . 6 . 5 . . . . 3 . Recycling Units 32 | . 4 . . . 2 7 . 4 . . . . . . . 2 13 Scanalyzers 9 | . . . . . . . . . . . . . . . . . 9 Garrison Access 16 | . . . . . 1 1 . 1 . . 3 . . . . 4 6 Terminal Hacks 39 | . 7 . 1 . 5 5 . . 3 . 4 2 1 . . 5 6 Part Schematic 1 | . . . . . . . . . . . . . . . . 1 . Robot Analysis 8 | . 2 . . . 3 1 . . . . . . . . . . 2 Prototype ID Bank 4 | . . . . . . . . . 1 . 1 1 . . . 1 . Open Door 1 | . . . . . . . . . . . . . 1 . . . . Level Access Points 1 | . . . . . . . . . . . . . . . . 1 . Branch Access Points 1 | . . . . . . 1 . . . . . . . . . . . Terminal Index 6 | . 1 . . . . 1 . . 1 . 1 1 . . . . 1 Unreport Threat 1 | . . . . . 1 . . . . . . . . . . . . Locate Traps 6 | . 3 . . . . 1 . . . . . . . . . 1 1 Hauler Manifests 7 | . 1 . . . 1 . . . 1 . 1 . . . . 1 2 Zone Layout 2 | . . . . . . 1 . . . . 1 . . . . . . Derelict Proto ID Bank 1 | . . . 1 . . . . . . . . . . . . . . Fabricator Hacks 9 | . . . . . . 2 . 1 . . 1 . . . . 5 . Network Status 5 | . . . . . . 2 . 1 . . 1 . . . . 1 . Load Schematic 2 | . . . . . . . . . . . . . . . . 2 . Build 2 | . . . . . . . . . . . . . . . . 2 . Repair Station Hacks 14 | . . . . . 5 . . . 3 . 4 . . . . 2 . Scan Component 7 | . . . . . 2 . . . 2 . 2 . . . . 1 . Repair 6 | . . . . . 2 . . . 1 . 2 . . . . 1 . Refit 1 | . . . . . 1 . . . . . . . . . . . . Recycling Unit Hacks 12 | . 2 . . . 1 3 . 1 . . . . . . . 1 4 Report Inventory 9 | . 1 . . . 1 2 . 1 . . . . . . . 1 3 Retrieve Components 3 | . 1 . . . . 1 . . . . . . . . . . 1 Scanalyzer 8 | . . . . . . . . . . . . . . . . . 8 Insert Component 2 | . . . . . . . . . . . . . . . . . 2 Analyze 6 | . . . . . . . . . . . . . . . . . 6 Garrison Access Hacks 5 | . . . . . . 1 . 1 . . 1 . . . . 1 1 Seal Access 5 | . . . . . . 1 . 1 . . 1 . . . . 1 1 Unauthorized Hacks 56 | . 10 . . . 9 4 . 3 2 . 5 6 . . 2 6 9 Terminals 47 | . 9 . . . 7 4 . 2 2 . 5 6 . . 2 5 5 Assimilate 2 | . . . . . 1 . . . . . . . . . . . 1 Botnet 16 | . 2 . . . 1 2 . 1 1 . 2 2 . . 1 2 2 Skim 28 | . 7 . . . 5 2 . 1 1 . 3 4 . . 1 2 2 Search 1 | . . . . . . . . . . . . . . . . 1 . Fabricators . | . . . . . . . . . . . . . . . . . . Repair Stations . | . . . . . . . . . . . . . . . . . . Recycling Units 7 | . 1 . . . 1 . . 1 . . . . . . . 1 3 Reject 6 | . 1 . . . 1 . . 1 . . . . . . . 1 2 Recyclers 1 | . . . . . . . . . . . . . . . . . 1 Scanalyzers . | . . . . . . . . . . . . . . . . . . Garrison Access 2 | . . . . . 1 . . . . . . . . . . . 1 Reprogram 1 | . . . . . 1 . . . . . . . . . . . . Watchers 1 | . . . . . . . . . . . . . . . . . 1 Data Cores Recovered . | . . . . . . . . . . . . . . . . . . Used . | . . . . . . . . . . . . . . . . . . Hacking Detections 49 | . 8 . . . 9 7 . 2 2 . 6 4 . . 2 6 3 Full Trace Events 5 | . . . . . . 1 . . 1 . 1 . . . . 2 . Feedback Events . | . . . . . . . . . . . . . . . . . . Feedback Blocked . | . . . . . . . . . . . . . . . . . . Robot Schematics Acquired . | . . . . . . . . . . . . . . . . . . Robots Built . | . . . . . . . . . . . . . . . . . . Authchips . | . . . . . . . . . . . . . . . . . . Time . | . . . . . . . . . . . . . . . . . . Total Robot Build Rating . | . . . . . . . . . . . . . . . . . . Part Schematics Acquired 3 | . . . . . . . . . . . . . . . . 1 2 Parts Built 2 | . . . . . . . . . . . . . . . . 2 . Authchips . | . . . . . . . . . . . . . . . . . . Time 175 | . . . . . . . . . . . . . . . . 175 . Total Part Build Rating 14 | . . . . . . . . . . . . . . . . 14 . Parts Repaired 6 | . . . . . 2 . . . 1 . 2 . . . . 1 . Time 314 | . . . . . 58 . . . 78 . 164 . . . . 14 . Parts Recycled . | . . . . . . . . . . . . . . . . . . Recycled Matter . | . . . . . . . . . . . . . . . . . . Retrieved Matter . | . . . . . . . . . . . . . . . . . . Retrieved Components 12 | . 10 . . . . 1 . . . . . . . . . . 1 Parts Scanalyzed 2 | . . . . . . . . . . . . . . . . . 2 Part Schematics Acquired 2 | . . . . . . . . . . . . . . . . . 2 Parts Damaged . | . . . . . . . . . . . . . . . . . . Bothacking | -11 -10 -10 -10 -9 -8 -7 -7 -7 -6 -6 -6 -6 -6 -6 -6 -5 -4 ------------ Run | Yrd Mat Min Exi Min Mat Fac Was Fac Fac Was Fac Ext Cet Arc Hub Fac Fac Used RIF Installer . | . . . . . . . . . . . . . . . . . . Robots Hacked 4 | . . . 4 . . . . . . . . . . . . . . Non-combat 3 | . . . 3 . . . . . . . . . . . . . . Combat 1 | . . . 1 . . . . . . . . . . . . . . Robot Hacks Applied 4 | . . . 4 . . . . . . . . . . . . . . parse_system 4 | . . . 4 . . . . . . . . . . . . . . Relay Couplers Released 3 | . . . . . . . . . . . . . . . . 3 . Programmers 3 | . . . . . . . . . . . . . . . . 3 . Fabnet Peak Effective % . | . . . . . . . . . . . . . . . . . . Robots Rewired 3 | . . . . . . . . . . . . 3 . . . . . Allies Hacked 1 | . . . . . . . . 1 . . . . . . . . . Hacks Repelled . | . . . . . . . . . . . . . . . . . . Allies | -11 -10 -10 -10 -9 -8 -7 -7 -7 -6 -6 -6 -6 -6 -6 -6 -5 -4 -------- Run | Yrd Mat Min Exi Min Mat Fac Was Fac Fac Was Fac Ext Cet Arc Hub Fac Fac Total Allies 37 | . . . . . 1 . 20 . . 1 . 9 5 . . . 1 Largest Group 20 | . . . . . 1 . 20 19 8 4 2 6 10 9 6 . 1 Highest-Rated Group 749 | . . . . . 10 . 534 503 222 120 59 308 749 698 488 . 10 Highest-Rated Ally 159 | . . . . . 10 . 35 35 32 32 32 159 159 159 96 . 10 Total Orders 14 | . . . . . 1 . . . 2 3 . . . . 8 . . STAY 5 | . . . . . 1 . . . . . . . . . 4 . . FOLLOW 4 | . . . . . . . . . . . . . . . 4 . . EXPLORE 2 | . . . . . . . . . 1 1 . . . . . . . RETURN 3 | . . . . . . . . . 1 2 . . . . . . . Ally Attacks 357 | . . . . . . . . 129 31 38 1 31 52 22 53 . . Total Damage 9351 | . . . . . . . . 2857 493 796 75 603 2217 798 1512 . . Kills 50 | . . . . . . . . 21 3 1 . 6 8 4 7 . . Allies Corrupted 3 | . . . . . . . . . . . . . . . 3 . . Allies Melted . | . . . . . . . . . . . . . . . . . . Intel | -11 -10 -10 -10 -9 -8 -7 -7 -7 -6 -6 -6 -6 -6 -6 -6 -5 -4 ------- Run | Yrd Mat Min Exi Min Mat Fac Was Fac Fac Was Fac Ext Cet Arc Hub Fac Fac Robot Analysis Total 8 | . 2 . . . 3 1 . . . . . . . . . . 2 Derelict Logs Recovered 5 | . . 3 . 2 . . . . . . . . . . . . . Drone Launches 3 | . . . . . . . . . 1 2 . . . . . . . Drone Recoveries 3 | . . . . . . . . . 1 2 . . . . . . . Exploration | -11 -10 -10 -10 -9 -8 -7 -7 -7 -6 -6 -6 -6 -6 -6 -6 -5 -4 ------------- Run | Yrd Mat Min Exi Min Mat Fac Was Fac Fac Was Fac Ext Cet Arc Hub Fac Fac Turns Passed 14195 | 84 854 655 262 259 1613 1795 411 1402 432 317 1640 903 427 133 325 1940 743 Spaces Moved 7610 | 47 485 512 217 221 750 928 239 849 224 139 770 455 222 67 178 886 421 Core 15 | 15 . . . . . . . . . . . . . . . . . Treads 5915 | . . . . . 537 928 239 849 224 139 770 455 222 67 178 886 421 Legs . | . . . . . . . . . . . . . . . . . . Wheels 1680 | 32 485 512 217 221 213 . . . . . . . . . . . . Hover . | . . . . . . . . . . . . . . . . . . Flight . | . . . . . . . . . . . . . . . . . . Fastest Speed 50 | 50 80 115 115 115 115 160 160 160 160 160 152 152 152 152 152 160 160 Average Speed 148 | 70 100 115 115 115 151 160 160 160 160 160 158 152 152 152 152 160 160 Slowest Speed 240 | 80 110 115 115 115 240 160 160 160 160 160 160 152 152 152 160 160 160 Overloaded Moves . | . . . . . . . . . . . . . . . . . . Propulsion Burnouts . | . . . . . . . . . . . . . . . . . . Robots Hopped . | . . . . . . . . . . . . . . . . . . Cave-ins Triggered . | . . . . . . . . . . . . . . . . . . Exploration Rate (%) 49 | 3 78 97 63 61 55 32 94 27 6 87 19 67 78 73 15 22 11 Regions Visited 17 Branch Regions 7 Pre-discovered Areas 6 | . . 3 . 1 2 . . . . . . . . . . . . Known Exits Taken 5 | . . . . . 1 . . 1 . . 1 . . . 1 1 . Unknown Exits Taken 8 | 1 1 1 1 1 . . . . . . . 1 1 1 . . . Scrap Searched 2 | . . 1 . 1 . . . . . . . . . . . . . Spaces Dug 25 | . . . . . 1 . . . . . 15 . . . . 9 . Terrain Destroyed 215 | . 12 . . . 17 . . . . 28 56 26 . 2 . 31 43 Melee 1 | . . . . . 1 . . . . . . . . . . . . Projectile 37 | . . . . . . . . . . . 1 . . 1 . 30 5 AOE 174 | . 12 . . . 16 . . . . 28 54 26 . . . . 38 Terrain Rammed . | . . . . . . . . . . . . . . . . . . Walls Destroyed . | . . . . . . . . . . . . . . . . . . Machines Disabled . | . . . . . . . . . . . . . . . . . . Actions | -11 -10 -10 -10 -9 -8 -7 -7 -7 -6 -6 -6 -6 -6 -6 -6 -5 -4 --------- Run | Yrd Mat Min Exi Min Mat Fac Was Fac Fac Was Fac Ext Cet Arc Hub Fac Fac Total 9897 | 75 760 545 227 226 1130 1144 273 886 283 200 1141 616 298 89 212 1314 478 Wait 1559 | 3 204 3 . 6 250 132 9 29 42 21 321 84 46 13 9 358 29 Move 7595 | 46 484 511 216 220 749 928 238 848 224 138 769 454 221 66 177 885 421 Hop . | . . . . . . . . . . . . . . . . . . Pick Up 114 | 8 7 5 4 . 23 10 9 1 2 6 8 7 6 2 1 8 7 Fast Attach 47 | 6 1 . . . 12 3 1 2 1 3 3 . 4 . 8 2 1 Attach 49 | . 3 5 1 . 10 4 2 . 3 4 2 4 3 . . 3 5 Detach 8 | . . . . . 1 . . . 2 1 2 . 1 . . . 1 Swap 44 | . 6 . 1 . 5 2 2 . 1 6 3 4 2 2 5 4 1 Drop 95 | 1 4 2 1 . 19 11 12 3 1 5 7 3 8 2 3 7 6 Fire 315 | 11 51 19 . . 44 54 . 3 7 16 24 24 7 4 6 38 7 Melee 21 | . . . 4 . 17 . . . . . . . . . . . . Ram . | . . . . . . . . . . . . . . . . . . Kick . | . . . . . . . . . . . . . . . . . . Crush 11 | . . . . . . . . . . . 2 . . . . 9 . Escape Stasis . | . . . . . . . . . . . . . . . . . . Rewire 36 | . . . . . . . . . . . . 36 . . . . . Trap . | . . . . . . . . . . . . . . . . . . Miscellaneous 3 | . . . . . . . . . . . . . . . 3 . . Route ------- -11/Scrapyard -10/Materials (discovered 4 exits: *Mat x3 / [*Min]) -10/Mines (discovered 4 exits: *Mat x2 / *Exi / Sub) -10/Exiles -9/Mines -8/Materials (discovered 4 exits: *Fac x3 / [*Sto]) -7/Factory (discovered 6 exits: *Fac x4 / Low x2) -7/Waste -7/Factory -6/Factory -6/Waste -6/Factory (discovered 2 exits: *Fac / *Ext) -6/Extension (discovered 3 exits: *Fac x2 / *Cet) -6/Cetus (discovered 2 exits: *Fac / *Arc) -6/Archives (discovered 2 exits: *Fac / *Hub) -6/Hub_04(d) -5/Factory (discovered 4 exits: *Fac x4) -4/Factory History --------- Turn | Location | Event 11 | -11/Scrapyard | Discovered new exit (range 15) 85 | -11/Scrapyard | Entered Materials 149 | -10/Materials | Discovered new exit (range 4) 310 | -10/Materials | Build established: Mutant 322 | -10/Materials | Discovered new exit (range 12) 729 | -10/Materials | Learned location of 2 exits from Subcaves 821 | -10/Materials | Identified exit to Materials 868 | -10/Materials | Loaded intel: 14 trap records 894 | -10/Materials | Learned Recycling recycling unit intel 939 | -10/Materials | Entered Mines 940 | -10/Mines | Identified exit to Subcaves 999 | -10/Mines | Lost 3 parts (1n2w) 1036 | -10/Mines | Discovered exit to Materials (range 11) 1043 | -10/Mines | Discovered exit to Materials (range 9) 1046 | -10/Mines | Received a Rocket Launcher from a helpful Derelict 1148 | -10/Mines | Learned Materials stockpile data 1337 | -10/Mines | Learned location of Storage (-8) 1511 | -10/Mines | Core integrity fell below 50% 1588 | -10/Mines | Deemed a non-threat by the Exiles lab entrance 1588 | -10/Mines | Discovered new exit (range 5) 1594 | -10/Mines | Entered Exiles 1629 | -10/Exiles | Met 8R-AWN 1648 | -10/Exiles | Met EX-HEX 1682 | -10/Exiles | Met EX-BIN 1697 | -10/Exiles | Aligned with FarCom system 1698 | -10/Exiles | Given EX-Vault access code 1725 | -10/Exiles | Opened EX-Vault 1730 | -10/Exiles | Found 0b10 Alert Chip 1754 | -10/Exiles | Warned to stay clear of 0b10 Research branches 1787 | -10/Exiles | Met EX-DEC 1844 | -10/Exiles | Discovered new exit (range 10) 1856 | -10/Exiles | Left Exiles lab with 0b10 Alert Chip 1856 | -10/Exiles | Entered Mines 2063 | -9/Mines | Learned location of Zion (-7) 2095 | -9/Mines | Discovered new exit (range 11) 2115 | -9/Mines | Entered Materials 2115 | -8/Materials | Evolved 4 slots: Propulsion x1, Utility x2, Weapon x1 2116 | -8/Materials | Identified exit to Factory 2362 | -8/Materials | Discovered new exit (range 4) 2505 | -8/Materials | Lost 3 parts (1n1u1w) 2618 | -8/Materials | Discovered exit to Factory (range 4) 2721 | -8/Materials | Build established: Scavenger-Mutant 3099 | -8/Materials | Learned location of Lower Caves (-7) 3116 | -8/Materials | Learned location of Extension (-6) 3124 | -8/Materials | Learned Storage emergency access door positions 3156 | -8/Materials | Learned location of 1 exit from Extension 3218 | -8/Materials | Repaired Lgt. Treads 3259 | -8/Materials | Repaired Imp. Ion Engine 3728 | -8/Materials | Entered Factory 3728 | -7/Factory | Evolved 2 slots: Utility x2 3729 | -7/Factory | Identified exit to Factory 4425 | -7/Factory | Identified exit to Lower Caves 5026 | -7/Factory | Build established: Hacker-Tank 5276 | -7/Factory | System corruption reached 10% 5434 | -7/Factory | Build established: Tank 5523 | -7/Factory | Sucked down chute 5523 | -7/Factory | Entered Waste 5524 | -7/Waste | Joined by Warlord forces that had cleared the area 5740 | -7/Waste | Discovered new exit (range 16) 5934 | -7/Waste | Entered Factory 5934 | -7/Factory | Accompanied by 19 allies 7232 | -7/Factory | Discovered exit to Factory (range 16) 7276 | -7/Factory | Lost 4 allies 7336 | -7/Factory | Entered another Factory area 7336 | -6/Factory | Accompanied by 8 allies 7336 | -6/Factory | Evolved 2 slots: Utility x2 7337 | -6/Factory | Identified exit to Extension 7531 | -6/Factory | Repaired Broken Mni. Drone Bay? 7768 | -6/Factory | Sucked down chute 7768 | -6/Factory | Entered Waste 7769 | -6/Waste | Met a frightened Derelict 7780 | -6/Waste | Spotted C-40 Crusher 7806 | -6/Waste | Destroyed C-40 Crusher 7848 | -6/Waste | Spotted C-40 Crusher 7852 | -6/Waste | Spotted C-40 Crusher 7856 | -6/Waste | Spotted C-40 Crusher 7856 | -6/Waste | Allies destroyed C-40 Crusher 7861 | -6/Waste | Destroyed C-40 Crusher 7889 | -6/Waste | Spotted C-40 Crusher 7904 | -6/Waste | Crushed by Compactor (1 part destroyed, 2 dropped) 7907 | -6/Waste | Crushed by Compactor (1 part destroyed, 1 dropped) 7909 | -6/Waste | Destroyed C-40 Crusher 7910 | -6/Waste | Spotted C-40 Crusher 7924 | -6/Waste | Lost 3 allies 7926 | -6/Waste | Destroyed C-40 Crusher 7951 | -6/Waste | Discovered new exit (range 39) 7958 | -6/Waste | 6 allies followed down the chute 7993 | -6/Waste | Destroyed C-40 Crusher 8085 | -6/Waste | Entered Factory 8085 | -6/Factory | Accompanied by 2 allies 8290 | -6/Factory | Discovered new exit (range 15) 8568 | -6/Factory | Build established: Hacker-Tank 8750 | -6/Factory | Repaired Broken Imp. Plasma Cutter 8837 | -6/Factory | Repaired Broken Rnf. Antimatter Reactor 9374 | -6/Factory | Spotted B-75 Beast 9397 | -6/Factory | Destroyed B-75 Beast 9693 | -6/Factory | Discovered exit to Extension (range 15) 9725 | -6/Factory | Entered Extension 9726 | -6/Extension | Identified exit to Factory 9910 | -6/Extension | Lost 3 allies 9914 | -6/Extension | Lost 3 parts (1u2w) 10152 | -6/Extension | Build established: Scavenger-Tank 10188 | -6/Extension | Energy Cycler disabled 10188 | -6/Extension | Rescued a captive Derelict 10189 | -6/Extension | Rescued a captive Derelict 10189 | -6/Extension | Rescued a captive Derelict 10190 | -6/Extension | Rescued a captive Derelict 10191 | -6/Extension | Rescued a captive Derelict 10192 | -6/Extension | Rescued a captive Derelict 10197 | -6/Extension | Rescued a captive Derelict 10198 | -6/Extension | Rescued a captive Derelict 10228 | -6/Extension | Spotted B-75 Beast 10264 | -6/Extension | Spotted B-75 Beast 10289 | -6/Extension | Destroyed B-75 Beast 10298 | -6/Extension | Rescued A7 10302 | -6/Extension | Discovered exit to Factory (range 15) 10578 | -6/Extension | Build established: Hacker-Skirmisher 10605 | -6/Extension | Discovered new exit (range 6) 10628 | -6/Extension | Entered Cetus 10628 | -6/Cetus | Accompanied by 6 allies (A7) 10633 | -6/Cetus | Acquired a Cetus Manufacturing Module code from A7 10654 | -6/Cetus | Spotted Cetus Guard 10654 | -6/Cetus | Spotted Cetus Guard 10659 | -6/Cetus | Destroyed Cetus Guard 10660 | -6/Cetus | Spotted Cetus Guard 10663 | -6/Cetus | Allies destroyed Cetus Guard 10668 | -6/Cetus | Destroyed Cetus Guard 10670 | -6/Cetus | Allies destroyed Cetus Guard 10808 | -6/Cetus | Started Cetus Manufacturing Module 10819 | -6/Cetus | Escorted A7 to Cetus Mainframe 10833 | -6/Cetus | Manufactured an Enhanced Grunt 10858 | -6/Cetus | Manufactured an Enhanced Grunt 10883 | -6/Cetus | Manufactured an Enhanced Grunt 10908 | -6/Cetus | Manufactured an Enhanced Grunt 10912 | -6/Cetus | Discovered new exit (range 16) 10933 | -6/Cetus | Manufactured an Enhanced Grunt 10941 | -6/Cetus | Spotted Cetus Guard 10944 | -6/Cetus | Spotted Cetus Guard 10946 | -6/Cetus | Spotted Cetus Guard 10949 | -6/Cetus | Spotted Cetus Guard 10950 | -6/Cetus | Allies destroyed Cetus Guard 10956 | -6/Cetus | Allies destroyed Cetus Guard 10959 | -6/Cetus | Allies destroyed Cetus Guard 10961 | -6/Cetus | Allies destroyed Cetus Guard 10975 | -6/Cetus | Discovered exit to Factory (range 16) 10988 | -6/Cetus | Met Revision 17 11017 | -6/Cetus | Build established: Scavenger-Tank 11055 | -6/Cetus | Entered Archives 11055 | -6/Archives | Accompanied by 9 allies (A7) 11060 | -6/Archives | Received a hacking code to weaken MAIN.C 11117 | -6/Archives | Unable to access archive contents 11148 | -6/Archives | Discovered exit to Factory (range 13) 11165 | -6/Archives | Discovered new exit (range 14) 11188 | -6/Archives | Entered Hub_04(d) 11188 | -6/Hub_04(d) | Accompanied by 6 allies 11188 | -6/Hub_04(d) | Discovered exit to Factory (range 11) 11287 | -6/Hub_04(d) | Spotted B-75 Beast 11297 | -6/Hub_04(d) | Allies destroyed B-75 Beast 11390 | -6/Hub_04(d) | Network Hub disabled 11462 | -6/Hub_04(d) | Lost 6 allies 11504 | -6/Hub_04(d) | System corruption reached 10% 11513 | -6/Hub_04(d) | Entered Factory 11513 | -5/Factory | Evolved 2 slots: Propulsion x1, Weapon x1 11649 | -5/Factory | Identified exit to Factory 12148 | -5/Factory | Fabricated Imp. Remote Shield? 12276 | -5/Factory | Repaired Imp. Shield Generator 13027 | -5/Factory | Destroyed B-75 Beast 13453 | -5/Factory | Entered another Factory area 13453 | -4/Factory | Evolved 2 slots: Power x1, Utility x1 14172 | -4/Factory | Cargo convoy interrupted 14180 | -4/Factory | Garrison activated, responded to threat 14196 | -4/Factory | Self-destructed Last Messages --------------- 14192_ R-10 Processor destroyed. 14192_ U-05 Engineer destroyed. 14192_ Hvy. Treads destroyed. 14193_ Penetrated by Slug. 14193_ Slug penetrates Wall. 14193_ Hvy. Treads destroyed. 14193_ Penetrated by Slug. 14193_ Hyp. Gauss Rifle destroyed. 14193_ Centrium Medium Armor Plating destroyed. 14193_ ALERT: Construction progress impeded, dispatching reinforcements to local area. 14194_ Slug penetrates Assembly Bed. 14194_ Penetrated by Slug. 14194_ U-05 Engineer destroyed. 14195_ Knocked back. 14196_ Penetrated by Slug. 14196_ Adv. KE Penetrator destroyed. 14196_ Penetrated by Slug. 14196_ P-70 Sage resets X-82 Rainmaker, system corruption cleaned. Map ----- +----------------------------------------------------+ | ?????????????????????????????????????????????????? | | ?????????????????????????????????????????????????? | | ?????????????????????????????????????????????????? | | ?????????????????????????????????????????????????? | | ?????????????????????????????????????????????????? | | ?????????????????????????????????????????????????? | | ?????????????????????????????????????????????????? | | ????????????????????????"????????????????????????? | | ??????????????????????""%T??##???????????????????? | | ?????????????????????? " ## " "????????????????? | | ?????????????????????? x " " #??????????????? | | ???????################;; """##????????????? | | ???????# # #????????????? | | ???????# # #????????????? | | ???????# # !#????????????? | | ???????# """ """ """ # xi #????????????? | | ???????# """ """ """ # #????????????? | | ???????# """ """ """ * / ?##??????????? | | ???????+ # p ;;##;;# ????????? | | ???????#"S """ """ ## hxhp ???????? | | ???????#""" """ """ h ! ???????? | | ???????# "" """ """ % !] g""????????? | | ???????# # % ]] YgG????????? | | ???????#######+####### ! g""????????? | | ??????##### !! ???????? | | ? !! =@ < < """ " ????????? | | ^ !! %= << """???????????? | | ? ^ ! << ""????????????? | | ? ????????????? | | ?? ^ ????BB??????? | | ? #####+### ^ #### ##????BB??????? | | ??????????# ^ ^ ^ #####?#+#?????????????? | | ??????????# ^ #?? ?????????????? | | ??????????# [ "" #??"" ""??????????????? | | ??????????# ^ [^[ " " #?""" """?????????????? | | ??????????# [[[ """" #?""" """?????????????? | | ??????????## ^[[ ^ """" # ?????????????? | | ??????????## """" # """ ""??????????????? | | ?????????? """" + """ ""??????????????? | | ?????????### # """ ""??????????????? | | ???????????# # ?????????????? | | ???????????############ ##? !!] ????????????? | | ????????????# # #?? !!! ???????????? | | ????????????# + #??? !!! ???????????? | | ????????????# [ # #???#########??????????? | | ????????????+ # ###############????????? | | ????????????# """ """?# # ! #????????? | | ????????????? """ """?# # #????????? | | ??????????????""" ""??# # #????????? | | ?????????????? ??# # #????????? | +----------------------------------------------------+ Best States ------------- Heat Dissipation 64 Energy Generation 37 Energy Capacity 1050 Matter Stores 300 Matter Capacity 300 Sight Range 16 Terrain Scan Density 10 Jamming Range 12 Armor Coverage 450 Resistance: TH 15 Evasion (%) 44 Targeting Accuracy 5 Core Analysis 6 Recoil Reduction 4 Offensive Hacking 12 Defensive Hacking 14 Item Schematics ----------------- Imp. Remote Shield | -5/Factory | Hacked Hvy. Treads | -4/Factory | Scanalyzed Adv. KE Penetrator | -4/Factory | Scanalyzed Robot Schematics ------------------ None Fabricated ------------ Imp. Remote Shield | x2 | -5/Factory Alien Tech Used ----------------- None Achievements -------------- Below Main Advantage Project G-00 Revising The Future Challenges ------------ None Game ------ Seed HelicalBattleWand Manual? 0 Play Time 04:39:36 Cumulative 55.0 hours Start 2025.03.01 @ 14:54:02 End 2025.03.02 @ 16:30:59 Sessions 1 Manual Loads 0 Difficulty Rogue Special Mode None Game No. 41 Rogue 41 Adventurer 0 Explorer 0 Win Type - Total 0 Types 0/0/0/0/0/0/0/0/0 Lore% 12 Gallery% 34 Achievement% 31 Wizard Run 0 Options --------- Layout 1 ASCII 0 Keyboard 0 Movement Mouse Keybinds 0 Fullscreen 1 Font 24/Smallcaps Map View 50x35 Zoom Use 0% Tactical HUD 1 Map Filters NONE Filters NONE Steam 0 RUN: d2b5577b-e953-4738-b7d7-4d1dece24653